bitfinex/quotes_ETHUSD_20250916
["timestamp","ask_amount","ask_price","bid_price","bid_amount"]
[1758032952678,0.002,4444.6,4444.5,7.37797187]
[1758032952904,0.002,4444.6,4444.5,21.87797187]
[1758032954391,0.002,4444.6,4444.5,22.66997187]
[1758032954800,0.002,4444.6,4444.5,22.78197187]
[1758032956903,0.0012,4444.6,4444.5,22.78197187]
[1758032957068,0.0012,4444.6,4444.5,24.99993068]
[1758032957814,0.0012,4444.6,4444.5,25.09005944]
[1758032959214,0.0012,4444.6,4444.5,21.19605944]
[1758032959509,0.0012,4444.6,4444.5,25.08705944]
[1758032959674,0.0012,4444.6,4444.5,21.19605944]
[1758032959873,0.0012,4444.6,4444.5,25.08705944]
[1758032962087,0.0012,4444.6,4444.5,21.19605944]
[1758032962302,0.0012,4444.6,4444.5,25.08605944]
[1758032965744,0.0012,4444.6,4444.5,25.08705944]
[1758032968762,0.0012,4444.6,4444.5,33.13324866]
[1758032968920,0.0012,4444.6,4444.5,33.24524866]
[1758032977451,0.1002,4444.6,4444.5,26.42185944]
[1758032977654,0.5849,4444.6,4444.5,30.19385944]
[1758032977859,0.5849,4444.6,4444.5,26.30985944]
[1758032978078,0.5849,4444.6,4444.5,30.19385944]
[1758032978388,0.5849,4444.6,4444.5,32.71485944]
[1758032978754,0.4859,4444.6,4444.5,32.71485944]
[1758032979289,0.0012,4444.6,4444.5,32.71485944]
[1758032980277,0.0012,4444.6,4444.5,33.00945944]
[1758032980880,0.0012,4444.6,4444.5,33.90815944]
[1758032982167,0.0004,4444.6,4444.5,33.90815944]
[1758032984395,0.0004,4444.6,4444.5,32.71285944]
[1758032985274,0.0004,4444.6,4444.5,29.21925944]
[1758032985606,0.0004,4444.6,4444.5,29.65615944]
[1758032986279,0.0004,4444.6,4444.5,29.65515944]
[1758032987715,0.0004,4444.6,4444.5,29.76715944]
[1758032989809,0.0004,4444.6,4444.5,29.30535944]
[1758032990119,0.0004,4444.6,4444.5,29.76715944]
[1758032990299,0.0994,4444.6,4444.5,23.90085944]
[1758032990501,0.8926,4444.6,4444.5,21.57090063]
[1758032990703,0.8926,4444.6,4444.5,0.09192876]
[1758032990914,0.8926,4444.6,4444.5,1.7308]
[1758032991227,0.8926,4444.6,4444.5,5.6108]
[1758032993221,0.8926,4444.6,4444.5,7.86077187]
[1758032994020,0.8826,4444.6,4444.5,7.86077187]
[1758032994256,0.8826,4444.6,4444.5,5.6108]
[1758032994626,0.8826,4444.6,4444.5,7.86077187]
[1758032995867,0.8826,4444.6,4444.5,5.6108]
[1758032996034,0.8826,4444.6,4444.5,7.86077187]
[1758032996218,0.8826,4444.6,4444.5,5.6108]
[1758032996424,0.8826,4444.6,4444.5,1.7308]
[1758032996725,0.8826,4444.6,4444.5,5.6088]
[1758032999187,0.8826,4444.6,4444.5,7.85877187]
[1758032999366,0.5571,4444.6,4444.5,7.85877187]
[1758032999743,0.5591,4444.6,4444.5,7.85877187]
[1758033000141,0.0914,4444.6,4444.5,7.85877187]
[1758033000345,0.772,4444.6,4444.5,8.98165579]
[1758033000546,0.8698,4444.6,4444.5,1.8428]
[1758033000840,0.8698,4444.6,4444.5,4.09277187]
[1758033001067,0.772,4444.6,4444.5,7.96977187]
[1758033003785,0.772,4444.6,4444.5,4.09277187]
[1758033004084,0.772,4444.6,4444.5,5.7198]
[1758033004380,0.772,4444.6,4444.5,4.09277187]
[1758033004579,0.002,4444.6,4444.5,3.98077187]
[1758033004747,0.002,4444.6,4444.5,8.50460447]
[1758033004942,0.002,4444.6,4444.5,8.48210476]
[1758033005179,0.002,4444.6,4444.5,8.79820476]
[1758033005389,0.002,4444.6,4444.5,8.48210476]
[1758033007468,0.0012,4444.6,4444.5,8.48210476]
[1758033008101,0.0012,4444.6,4444.5,22.98210476]
[1758033009811,0.0012,4444.6,4444.5,23.29820476]
[1758033010102,0.0012,4444.6,4444.5,19.42220476]
[1758033010402,0.0012,4444.6,4444.5,23.29720476]
[1758033011073,0.0012,4444.6,4444.5,8.79720476]
[1758033011413,0.0012,4444.6,4444.5,9.72820476]
[1758033011712,0.0012,4444.6,4444.5,24.22820476]
[1758033011903,0.0012,4444.6,4444.5,24.69590476]
[1758033013350,0.0012,4444.6,4444.5,23.44880476]
[1758033014013,0.4689,4444.6,4444.5,22.82347187]
[1758033014332,0.0012,4444.6,4444.5,22.35577187]
[1758033014541,0.0012,4444.6,4444.5,4.40887187]
[1758033014729,0.0012,4444.6,4444.5,8.30437158]
[1758033014905,0.0012,4444.6,4444.5,23.23337187]
[1758033015097,0.0012,4444.6,4444.5,24.68373068]
[1758033015298,0.5699,4444.6,4444.5,1.8428]
[1758033015521,0.8669,4444.6,4444.5,5.7158]
[1758033015720,0.5699,4444.6,4444.5,7.96577187]
[1758033016936,0.0012,4444.6,4444.5,7.96577187]
[1758033017232,0.0012,4444.6,4444.5,8.28187187]
[1758033018108,0.0012,4444.6,4444.5,10.49983068]
[1758033018295,0.0012,4444.6,4444.5,11.43083068]
[1758033019309,0.0012,4444.6,4444.5,25.93083068]
[1758033020304,0.0012,4444.6,4444.5,24.99983068]
[1758033020503,0.7712,4444.6,4444.5,22.46477187]
[1758033021238,0.4689,4444.6,4444.5,22.46477187]
[1758033021416,0.0012,4444.6,4444.5,22.46477187]
[1758033021602,0.0012,4444.6,4444.5,18.59277187]
[1758033021805,0.7712,4444.6,4444.5,22.46377187]
[1758033022337,0.7712,4444.6,4444.5,18.59277187]
[1758033022523,0.7712,4444.6,4444.5,22.46377187]
[1758033022843,0.7712,4444.6,4444.5,20.2138]
[1758033023329,0.7712,4444.6,4444.5,22.46377187]
[1758033023525,0.0012,4444.6,4444.5,22.46377187]
[1758033023731,0.0012,4444.6,4444.5,23.71087187]
[1758033024247,0.0012,4444.6,4444.5,23.23137187]
[1758033024646,0.0012,4444.6,4444.5,25.89973068]
[1758033025220,0.0012,4444.6,4444.5,25.78983068]
[1758033025553,0.0012,4444.6,4444.5,26.70793068]
[1758033026560,0.0012,4444.6,4444.5,10.18073068]
[1758033026725,0.0012,4444.6,4444.5,7.96277187]
[1758033026926,0.0012,4444.6,4444.5,23.77220774]
[1758033028147,0.0012,4444.6,4444.5,23.77120774]
[1758033029539,0.0012,4444.6,4444.5,19.90220774]
[1758033029745,0.0012,4444.6,4444.5,23.77120774]
[1758033030166,0.0012,4444.6,4444.5,25.98916655]
[1758033030465,0.0012,4444.6,4444.5,22.12016655]
[1758033030685,0.0012,4444.6,4444.5,25.98816655]
[1758033031240,0.0012,4444.6,4444.5,25.07006655]
[1758033032259,0.0012,4444.6,4444.5,20.90086655]
[1758033032477,0.0012,4444.6,4444.5,24.76786655]
[1758033032678,0.0004,4444.6,4444.5,24.76786655]
[1758033033294,0.0004,4444.6,4444.5,25.06906655]
[1758033034183,0.0004,4444.6,4444.5,25.53676655]
[1758033034351,0.0004,4444.6,4444.5,25.98716655]
[1758033034549,0.0004,4444.6,4444.5,26.77916655]
[1758033036379,0.002,4444.7,4444.5,26.77916655]
[1758033036380,1e-08,4444.7,4444.6,6.04192125]
[1758033036568,1e-08,4444.7,4444.6,9.17878006]
[1758033036763,1e-08,4444.7,4444.6,9.47998006]
[1758033037492,1e-08,4444.7,4444.6,15.67059872]
[1758033039524,1e-08,4444.7,4444.6,30.17059872]
[1758033041881,1e-08,4444.7,4444.6,34.03459872]
[1758033042699,1e-08,4444.7,4444.6,23.97998006]
[1758033042898,1e-08,4444.7,4444.6,34.03459872]
[1758033043327,1e-08,4444.7,4444.6,33.24259872]
[1758033043714,1e-08,4444.7,4444.6,34.03459872]
[1758033044233,1e-08,4444.7,4444.6,34.1247151]
[1758033044434,1e-08,4444.7,4444.6,22.35999644]
[1758033044607,1e-08,4444.7,4444.6,16.84083763]
[1758033044608,0.87180001,4444.7,4444.6,16.84083763]
[1758033044939,0.87180001,4444.7,4444.6,20.61372125]
[1758033049038,0.09900001,4444.7,4444.6,16.75072125]
[1758033049205,0.87180001,4444.7,4444.6,20.61272125]
[1758033049606,0.57280001,4444.7,4444.6,20.61272125]
[1758033050240,0.47380001,4444.7,4444.6,20.61272125]
[1758033050842,0.57480001,4444.7,4444.6,20.61372125]
[1758033053013,0.47380001,4444.7,4444.6,20.61372125]
[1758033053214,0.57480001,4444.7,4444.6,20.61372125]
[1758033053612,1e-08,4444.7,4444.6,20.61372125]
[1758033054131,0.57280001,4444.7,4444.6,20.61372125]
[1758033054549,0.57280001,4444.7,4444.6,20.72572125]
[1758033054754,0.57280001,4444.7,4444.6,20.81586016]
[1758033057442,0.47380001,4444.7,4444.6,20.81586016]
[1758033057642,1e-08,4444.7,4444.6,21.11226016]
[1758033057981,0.46670001,4445.0,4444.9,2.24976939]
[1758033058127,0.46670001,4445.0,4444.9,6.10876939]
[1758033058331,0.10020001,4445.0,4444.9,6.22156939]
[1758033058566,0.00120001,4445.0,4444.9,21.8028161]
[1758033058783,0.10020001,4445.0,4444.9,2.4627694]
[1758033059070,0.86470001,4445.0,4444.9,3.9718]
[1758033059569,0.86470001,4445.0,4444.9,6.22156939]
[1758033060070,0.86470001,4445.0,4444.9,3.9718]
[1758033060531,0.86470001,4445.0,4444.9,3.9708]
[1758033060736,0.86470001,4445.0,4444.9,0.1128]
[1758033061296,3.93227066,4445.0,4444.9,2.5928]
[1758033062336,1.68255188,4445.0,4444.9,2.5928]
[1758033062566,0.97670001,4445.0,4444.9,2.5928]
[1758033062870,3.22641879,4445.0,4444.9,2.5928]
[1758033063884,0.41910001,4445.0,4444.9,3.8578]
[1758033064058,0.78060001,4445.0,4444.9,3.8578]
[1758033064736,0.87480001,4445.0,4444.9,3.8578]
[1758033064961,1.18755671,4445.0,4444.9,3.8578]
[1758033065560,3.43727549,4445.0,4444.9,3.8578]
[1758033066034,3.43727549,4445.0,4444.9,0.0008]
[1758033066233,6.43727549,4445.0,4444.9,0.0008]
[1758033066447,6.77309133,4445.0,4444.9,0.0008]
[1758033066648,7.25661619,4445.0,4444.9,0.0008]
[1758033067067,13.44723485,4445.0,4444.9,0.0008]
[1758033067271,16.82070999,4445.0,4444.9,0.0008]
[1758033067470,13.44696063,4445.0,4444.9,0.0008]
[1758033067677,17.30396063,4445.0,4444.9,0.0008]
[1758033068035,16.82070999,4445.0,4444.9,0.0008]
[1758033068240,16.82019978,4445.0,4444.9,0.0008]
[1758033068439,16.48489415,4445.0,4444.9,0.0008]
[1758033069275,6.43727549,4445.0,4444.9,0.0008]
[1758033069508,10.29327549,4445.0,4444.9,0.0008]
[1758033072204,10.19907549,4445.0,4444.9,0.0008]
[1758033072502,10.29327549,4445.0,4444.9,0.0008]
[1758033072883,10.29247549,4445.0,4444.9,0.0008]
[1758033076383,12.02147549,4445.0,4444.9,0.0008]
[1758033076602,12.35615555,4445.0,4444.9,0.0008]
[1758033077795,18.00169548,4445.0,4444.9,0.0008]
[1758033078412,2.24907063,4444.7,4444.6,0.001]
[1758033078725,5.24992125,4444.6,4444.0,0.001]
[1758033079028,10.71918699,4444.2,4444.0,0.001]
[1758033079230,15.39024374,4444.2,4444.0,0.001]
[1758033079435,15.95794374,4444.2,4444.0,0.001]
[1758033079979,16.07094448,4444.2,4444.0,0.001]
[1758033080181,2.25042758,4443.6,4443.5,0.001]
[1758033080414,2.25042758,4443.6,4442.9,0.001]
[1758033080415,2.25068083,4443.1,4442.9,0.001]
[1758033080640,5.25113682,4442.2,4441.9,0.09018749]
[1758033080818,5.25113682,4442.2,4441.0,0.4651]
[1758033080819,9.10513682,4442.2,4441.0,0.4651]
[1758033081118,5.584,4442.4,4442.1,0.7564]
[1758033081282,6.1050812,4442.4,4442.1,0.308]
[1758033081487,7.41424938,4442.3,4442.2,0.9135]
[1758033081681,5.16316324,4442.6,4442.3,0.4484]
[1758033081886,7.41409737,4442.6,4442.5,0.297]
[1758033082109,8.76599323,4442.6,4442.5,0.297]
[1758033082620,12.61999323,4442.6,4442.5,1.2105]
[1758033082804,2.25083601,4442.8,4442.5,1.2105]
[1758033083008,2.25012499,4442.7,4442.6,0.9135]
[1758033083204,1.73,4443.3,4442.6,1.2105]
[1758033083519,0.099,4442.7,4442.1,0.011]
[1758033083819,7.41430006,4442.2,4442.1,0.011]
[1758033083988,7.41430006,4442.2,4442.1,0.308]
[1758033084183,5.16316324,4442.2,4442.1,0.308]
[1758033084426,3.0,4442.9,4442.1,1.2215]
[1758033084626,3.0,4442.9,4442.2,0.9394]
[1758033084627,3.0,4442.7,4442.2,0.9394]
[1758033084813,5.25088536,4442.7,4442.2,0.9394]
[1758033085133,5.25088536,4442.7,4442.6,0.2963]
[1758033085936,2.25108344,4442.4,4442.1,0.011]
[1758033086234,7.41415246,4442.5,4442.1,0.9504]
[1758033086435,7.41415246,4442.5,4442.3,0.2963]
[1758033086639,3.854,4442.6,4442.4,0.9394]
[1758033086799,2.25098487,4442.5,4442.1,0.9504]
[1758033087003,2.25098487,4442.5,4442.2,0.9394]
[1758033087201,2.25098487,4442.5,4442.4,0.2963]
[1758033087731,6.85888323,4442.6,4442.4,1.2357]
[1758033088033,0.75394,4442.6,4442.4,1.2357]
[1758033088199,5.16316324,4443.9,4442.5,0.96190984]
[1758033088402,2.25053614,4443.4,4442.6,3.19032335]
[1758033088628,2.25053614,4443.4,4443.3,0.2963]
[1758033088933,6.51694377,4443.4,4443.3,0.2963]
[1758033089136,2.25065388,4443.2,4442.6,0.4684]
[1758033089340,4.26640763,4443.4,4442.6,0.4684]
[1758033089341,2.25080041,4442.9,4442.6,0.9402]
[1758033089554,7.41400263,4442.8,4442.6,0.9402]
[1758033089706,2.25088347,4442.7,4442.6,0.0008]
[1758033089902,2.99228814,4442.7,4442.6,0.0008]
[1758033090118,0.74140467,4442.7,4442.6,0.2971]
[1758033090352,2.99228814,4442.7,4442.6,0.2971]
[1758033091107,6.853,4443.1,4442.6,1.2365]
[1758033091342,2.2508328,4442.8,4442.7,0.9394]
[1758033091652,0.112,4442.9,4442.8,0.9394]
[1758033091970,2.36278214,4442.9,4442.8,1.2357]
[1758033092158,2.25088347,4442.7,4442.6,0.0008]
[1758033092327,7.41404671,4442.7,4442.6,0.0008]
[1758033092528,11.86784671,4442.7,4442.6,0.0008]
[1758033092729,14.86784671,4442.7,4442.6,0.0008]
[1758033093055,15.37375307,4442.7,4442.6,0.0008]
[1758033093245,17.49715254,4442.7,4442.6,0.0008]
[1758033093440,17.37183554,4442.7,4442.6,0.0008]
[1758033093647,19.70808486,4442.7,4442.6,0.0008]
[1758033095746,30.17380205,4442.7,4442.6,0.0008]
[1758033098572,10.29392162,4442.7,4442.6,0.0008]
[1758033098739,14.43892162,4442.7,4442.6,0.0008]
[1758033098940,14.54576683,4442.7,4442.6,0.0008]
[1758033099349,14.43886683,4442.7,4442.6,0.0008]
[1758033099548,14.23004229,4442.7,4442.6,0.0008]
[1758033099773,14.43891852,4442.7,4442.6,0.0008]
[1758033100888,14.54581852,4442.7,4442.6,0.0008]
[1758033101040,30.17469895,4442.7,4442.6,0.0008]
[1758033101442,30.06779895,4442.7,4442.6,0.0008]
[1758033105074,14.43791852,4442.7,4442.6,0.0008]
[1758033105471,14.3126238,4442.7,4442.6,0.0018]
[1758033105650,14.43809238,4442.7,4442.6,0.0018]
[1758033107291,15.15139693,4442.7,4442.6,0.0018]
[1758033107686,15.04449693,4442.7,4442.6,0.0018]
[1758033108082,15.04349693,4442.7,4442.6,0.0018]
[1758033108389,14.64574538,4442.7,4442.6,0.0018]
[1758033109361,10.79574538,4442.7,4442.6,0.0018]
[1758033109595,14.5202768,4442.7,4442.6,0.0018]
[1758033109782,14.35303149,4442.7,4442.6,0.0018]
[1758033110191,10.00323149,4442.7,4442.6,0.2981]
[1758033110378,13.85323149,4442.7,4442.6,0.2981]
[1758033110776,13.85323149,4442.7,4442.6,0.0018]
[1758033110777,14.45203149,4442.7,4442.6,0.0018]
[1758033111894,13.64377849,4442.7,4442.6,1.2375]
[1758033112099,11.64569602,4442.7,4442.6,1.2375]
[1758033112298,13.05846432,4442.7,4442.6,0.0018]
[1758033112620,12.45532007,4442.7,4442.6,0.0018]
[1758033112900,12.75436489,4442.7,4442.6,0.0018]
[1758033113065,13.5629043,4442.7,4442.6,0.0018]
[1758033113265,15.78086311,4442.7,4442.6,0.0018]
[1758033113697,14.9723237,4442.7,4442.6,0.0018]
[1758033113860,15.77854215,4442.7,4442.6,0.0018]
[1758033114195,15.77871191,4442.7,4442.6,0.0018]
[1758033114992,15.47971191,4442.7,4442.6,0.0018]
[1758033115402,14.9723237,4442.7,4442.6,0.0018]
[1758033115721,14.9723237,4442.7,4441.7,0.001]
[1758033115722,2.25133954,4441.8,4441.7,0.001]
[1758033115904,2.25144092,4441.6,4440.7,0.4352]
[1758033116223,7.42317516,4441.2,4440.8,0.5899]
[1758033116421,12.08876514,4441.2,4440.8,0.5899]
[1758033116978,7.42332727,4440.9,4440.8,0.12]
[1758033117176,12.08891725,4440.9,4440.8,0.12]
[1758033117592,15.08891725,4440.9,4440.8,0.12]
[1758033117992,15.64481725,4440.9,4440.8,0.12]
[1758033118194,15.08891725,4440.9,4440.8,0.12]
[1758033118413,17.08057121,4440.9,4440.8,0.8714]
[1758033118710,17.08057121,4440.9,4440.8,1.3346]
[1758033120381,14.48118093,4440.9,4440.8,1.3346]
[1758033120883,14.27132727,4440.9,4440.8,1.3346]
[1758033123319,8.17153147,4440.9,4440.8,1.3346]
[1758033123514,3.0,4440.9,4440.8,1.3346]
[1758033123687,1.731,4441.7,4440.8,1.3356]
[1758033123895,0.112,4441.1,4440.9,0.9144]
[1758033124103,0.112,4441.1,4441.0,1.2146]
[1758033125918,0.112,4441.1,4441.0,1.2154]
[1758033126225,5.28353147,4441.1,4441.0,1.2154]
[1758033126827,7.53522587,4441.1,4441.0,1.2154]
[1758033127029,15.61954846,4441.1,4441.0,0.0008]
[1758033127187,16.09734846,4441.1,4441.0,0.0008]
[1758033127386,15.52054846,4441.1,4441.0,0.0008]
[1758033127921,15.52054846,4441.1,4441.0,0.301]
[1758033129726,15.52054846,4441.1,4441.0,1.2154]
[1758033130023,11.67354846,4441.1,4441.0,0.301]
[1758033130211,15.52054846,4441.1,4441.0,0.301]
[1758033130928,15.52054846,4441.1,4441.0,0.0008]
[1758033131231,16.09734846,4441.1,4441.0,0.0008]
[1758033131431,16.39634846,4441.1,4441.0,0.0008]
[1758033131643,17.10101434,4441.1,4441.0,0.0008]
[1758033132394,16.80201434,4441.1,4441.0,0.0008]
[1758033133203,3.0,4441.1,4441.0,1.2154]
[1758033133431,9.0968944,4441.1,4441.0,1.2154]
[1758033133961,6.8452,4441.1,4441.0,1.2154]
[1758033134259,9.0968944,4441.1,4441.0,1.2154]
[1758033134461,5.2508944,4441.1,4441.0,1.2154]
[1758033134758,9.0968944,4441.1,4441.0,1.2154]
[1758033134962,2.9992,4441.1,4441.0,1.2154]
[1758033135184,5.2508944,4441.1,4441.0,1.2154]
[1758033135527,2.9992,4441.1,4441.0,1.2154]
[1758033135736,5.2508944,4441.1,4441.0,1.2154]
[1758033137941,3.846,4441.3,4441.0,1.2154]
[1758033138141,2.25164369,4441.2,4441.1,0.9144]
[1758033138344,2.25164369,4441.2,4441.1,0.9152]
[1758033138549,6.09761905,4441.3,4441.1,1.2154]
[1758033138771,0.792,4441.1,4438.1,0.01]
[1758033139089,0.792,4441.1,4436.1,0.01]
[1758033139090,3.0,4438.1,4436.1,0.01]
[1758033139232,15.63351399,4437.2,4436.2,0.4632]
[1758033139437,15.63351399,4436.6,4436.2,0.4632]
[1758033139760,4.13622848,4436.5,4436.2,0.4632]
[1758033139962,6.18255432,4436.5,4436.4,0.3002]
[1758033140132,6.36817936,4436.5,4436.4,1.2146]
[1758033140472,0.41625366,4436.5,4436.4,0.84788508]
[1758033140644,0.41625366,4436.5,4436.4,0.7514]
[1758033140871,0.41625366,4436.5,4436.4,0.09132756]
[1758033141075,0.41625366,4436.5,4436.1,0.01]
[1758033141280,0.43877431,4436.4,4436.1,0.01]
[1758033141479,0.41625366,4436.3,4436.1,0.01]
[1758033141678,0.43877431,4436.2,4436.1,0.01]
[1758033142213,0.43877431,4436.2,4436.1,0.3102]
[1758033142495,0.43877431,4436.2,4436.1,0.7734]
[1758033143397,0.41625366,4436.2,4436.1,3.47883232]
[1758033143598,0.41625366,4436.2,4436.1,1.2246]
[1758033143911,0.41625366,4436.2,4436.1,3.47883232]
[1758033144512,0.41625366,4436.2,4436.1,1.2246]
[1758033144661,0.20815029,4436.2,4436.1,3.47883232]
[1758033145010,0.41541402,4436.2,4436.1,1.2246]
[1758033145300,0.41541402,4436.2,4436.1,3.47883232]
[1758033145991,0.41541402,4436.2,4436.1,0.7734]
[1758033146366,0.71601402,4436.2,4436.1,0.01]
[1758033146570,3.43309692,4436.2,4436.1,0.01]
[1758033146795,1.20143607,4436.2,4435.5,0.001]
[1758033146999,4.33041402,4436.1,4435.5,0.001]
[1758033147303,13.08784098,4435.9,4435.5,0.001]
[1758033147473,2.55508642,4435.6,4435.5,0.001]
[1758033147800,12.04254577,4435.6,4435.5,0.001]
[1758033148005,3.41541402,4435.6,4435.5,0.001]
[1758033148303,9.88550044,4435.6,4435.5,0.001]
[1758033148505,7.63101402,4435.6,4435.5,0.001]
[1758033148692,7.33441402,4435.6,4435.5,0.001]
[1758033149570,3.41541402,4435.6,4435.5,0.0018]
[1758033149770,0.41541402,4435.6,4435.5,0.3161]
[1758033150193,0.4143714,4435.6,4435.5,0.779]
[1758033150369,0.4143714,4435.6,4435.5,0.55892025]
[1758033150803,0.4143714,4435.6,4435.5,0.19212066]
[1758033151581,0.4143714,4435.6,4435.2,2.25468515]
[1758033151911,0.4143714,4435.5,4435.4,2.25458808]
[1758033152215,0.4143714,4435.5,4435.4,2.56888808]
[1758033152586,0.4143714,4435.5,4435.4,2.80198808]
[1758033152798,0.4143714,4435.5,4435.4,3.26488808]
[1758033153109,0.4143714,4435.5,4435.4,3.85159157]
[1758033153283,0.4143714,4435.5,4435.4,3.94104569]
[1758033153476,0.4143714,4435.5,4435.4,3.24504569]
[1758033153676,0.4143714,4435.5,4435.4,3.70794569]
[1758033153871,0.4143714,4435.5,4435.4,3.94104569]
[1758033154216,0.4143714,4435.5,4435.4,7.85704569]
[1758033154621,2.2535315,4437.5,4435.5,0.792]
[1758033154913,2.25362269,4437.3,4435.7,0.792]
[1758033155081,3.19961307,4437.2,4436.2,2.25418094]
[1758033155289,3.19961307,4437.2,4436.2,6.02450385]
[1758033155616,0.3006,4436.3,4435.8,1.732]
[1758033155799,3.20010932,4436.2,4435.8,1.732]
[1758033156030,0.4676,4436.1,4435.6,3.917]
[1758033156231,0.02252065,4436.0,4435.6,3.917]
[1758033156446,0.02252065,4436.0,4435.9,0.3143]
[1758033156747,0.02252065,4436.3,4435.7,0.4629]
[1758033157545,2.25412958,4436.4,4435.7,0.4629]
[1758033157744,0.02252065,4436.3,4435.6,3.917]
[1758033158549,3.1767815,4436.2,4435.6,3.917]
[1758033158842,0.02252065,4436.1,4435.6,3.917]
[1758033159821,0.02252065,4436.1,4435.6,3.9178]
[1758033160141,2.27677546,4436.1,4435.6,3.9178]
[1758033160343,0.4676,4436.0,4435.6,3.69874798]
[1758033160520,0.02252065,4435.9,4435.6,3.69874798]
[1758033160723,0.3006,4435.7,4435.6,0.0018]
[1758033161135,0.02252065,4435.7,4435.6,0.0018]
[1758033161639,0.49772101,4435.7,4435.6,0.0018]
[1758033161839,0.49772101,4435.7,4435.2,6.1656486]
[1758033162021,0.02252065,4435.7,4435.2,4.3739]
[1758033162221,2.25433972,4435.9,4435.2,4.3739]
[1758033162222,0.02252065,4435.9,4435.3,0.4629]
[1758033162565,1.072435,4436.2,4435.3,0.4629]
[1758033162566,0.47617628,4435.8,4435.4,0.02254588]
[1758033162765,0.02252065,4436.2,4435.4,0.02254588]
[1758033162932,0.47622,4436.1,4435.3,0.4629]
[1758033163266,0.49874065,4436.0,4435.3,3.912]
[1758033163502,0.47622,4435.9,4435.3,3.912]
[1758033163795,0.47622,4435.8,4435.5,2.25452851]
[1758033164000,0.47622,4435.7,4435.6,0.4629]
[1758033164152,0.47622,4435.7,4435.6,3.03168642]
[1758033164600,0.13452065,4436.1,4435.6,0.3143]
[1758033164803,0.47705585,4436.0,4435.7,2.25443106]
[1758033164989,0.47705585,4435.9,4435.7,2.71733106]
[1758033165298,0.112,4436.1,4435.7,2.71733106]
[1758033165299,0.02252065,4436.0,4435.8,0.3143]
[1758033165502,0.47764906,4435.9,4435.4,0.112]
[1758033165688,0.47764906,4435.8,4435.5,2.71739622]
[1758033165996,0.47764906,4435.7,4435.6,2.71738642]
[1758033166496,0.47764906,4435.7,4435.6,3.28813128]
[1758033166697,0.89315922,4435.7,4435.6,3.37758642]
[1758033167278,1.49799422,4435.7,4435.6,3.37758642]
[1758033167773,0.89315922,4435.7,4435.6,3.63520257]
[1758033168013,0.89315922,4435.7,4435.6,4.33200257]
[1758033169006,0.89315922,4435.7,4435.6,18.85454743]
[1758033169185,0.89315922,4435.7,4435.6,18.83200257]
[1758033169997,0.89315922,4435.7,4435.6,18.83280257]
[1758033170183,0.41551016,4435.7,4435.6,18.83280257]
[1758033170379,0.41551016,4435.7,4435.6,19.62480257]
[1758033170380,0.20775508,4435.7,4435.6,19.62480257]
[1758033170683,0.60178834,4436.6,4436.3,2.25408335]
[1758033170954,0.69098414,4436.5,4436.4,6.15707684]
[1758033171216,0.69098414,4436.5,4436.4,6.47137684]
[1758033171401,0.99158414,4436.5,4436.4,3.903]
[1758033171805,0.99158414,4436.5,4436.4,6.15707988]
[1758033172121,0.48185168,4436.5,4436.4,6.15707988]
[1758033172883,0.48185168,4436.5,4436.4,6.47137988]
[1758033173088,0.48185168,4436.5,4436.4,3.903]
[1758033173395,0.78245168,4436.5,4436.2,3.98716976]
[1758033173594,0.78245168,4436.5,4436.3,3.899]
[1758033173595,0.93765168,4436.4,4436.3,3.899]
[1758033173921,1.70585168,4436.4,4436.3,3.899]
[1758033174617,1.70585168,4436.4,4436.3,3.898]
[1758033174618,1.73035168,4436.4,4436.3,3.898]
[1758033174840,2.35466067,4436.4,4436.3,3.898]
[1758033175236,1.75287233,4436.4,4436.3,3.898]
[1758033175818,0.78245168,4436.4,4436.3,3.898]
[1758033176009,0.48185168,4436.4,4436.3,6.15213069]
[1758033176207,0.48185168,4436.4,4436.3,3.898]
[1758033176433,0.48185168,4436.4,4436.3,4.194]
[1758033176643,0.60178834,4437.4,4436.3,5.6967413]
[1758033176827,0.48174939,4437.3,4436.9,2.25380946]
[1758033177014,0.48174939,4437.2,4437.0,3.901]
[1758033177230,0.02252065,4437.4,4437.0,3.901]
[1758033177231,0.48174939,4437.1,4437.0,6.17731282]
[1758033177421,2.25314595,4438.3,4437.3,2.25360823]
[1758033177422,0.62430899,4437.7,4437.3,2.25360823]
[1758033177623,0.48199208,4437.6,4437.4,3.9]
[1758033177845,0.60178834,4437.8,4437.4,6.15356617]
[1758033177846,0.48199208,4437.5,4437.4,6.15356617]
[1758033178048,0.48199208,4437.5,4437.4,6.90386617]
[1758033178431,0.01,4437.9,4437.4,8.8455193]
[1758033178620,0.01,4437.9,4437.6,2.25347034]
[1758033178816,0.01,4437.9,4437.8,2.25336878]
[1758033179245,0.01,4437.9,4437.8,3.00366878]
[1758033180514,0.01,4437.9,4437.8,5.76236878]
[1758033180715,0.01,4437.9,4437.8,6.72005251]
[1758033180951,0.01,4437.9,4437.8,6.26575251]
[1758033181156,0.01,4437.9,4437.8,20.15096878]
[1758033181325,0.01,4437.9,4437.8,18.89416878]
[1758033181528,0.01,4437.9,4437.8,8.75796878]
[1758033181846,0.01,4437.9,4437.8,9.54996878]
[1758033182041,0.01,4437.9,4437.8,10.98760251]
[1758033182754,0.01,4437.9,4437.8,10.75370251]
[1758033182958,0.01,4437.9,4437.8,10.98760251]
[1758033183861,0.0092,4437.9,4437.8,10.75370251]
[1758033185278,0.0092,4437.9,4437.8,10.98760251]
[1758033185773,0.0092,4437.9,4437.8,25.48760251]
[1758033186854,0.0092,4437.9,4437.8,25.25370251]
[1758033187541,0.3039,4437.9,4437.8,22.49116878]
[1758033188064,0.0092,4437.9,4437.8,22.49116878]
[1758033188237,0.0092,4437.9,4437.8,22.49016878]
[1758033188657,0.0092,4437.9,4437.8,7.99016878]
[1758033189277,0.0092,4437.9,4437.8,8.28906878]
[1758033189479,0.0092,4437.9,4437.8,8.75386878]
[1758033190458,0.0092,4437.9,4437.8,10.18180096]
[1758033190661,0.0092,4437.9,4437.8,10.64660096]
[1758033191355,0.0092,4437.9,4437.8,9.54586878]
[1758033192093,0.0092,4437.9,4437.8,9.66776878]
[1758033192257,0.0092,4437.9,4437.8,9.77976878]